fUSD/lending_fUSD_20260422
["ID","MTS","AMOUNT","RATE_DAILY","PERIOD"]
[420968773,1776825046412,-500.0,9.249e-05,2]
[420968775,1776825046421,-500.0,9.249e-05,2]
[420968776,1776825046430,-500.0,9.249e-05,2]
[420968777,1776825046439,-500.0,9.249e-05,2]
[420968778,1776825046448,-500.0,9.249e-05,2]
[420968779,1776825046457,-500.0,9.249e-05,2]
[420968781,1776825046467,-500.0,9.249e-05,2]
[420968782,1776825046476,-500.0,9.249e-05,2]
[420968783,1776825046484,-500.0,9.249e-05,2]
[420968784,1776825046493,-500.0,9.249e-05,2]
[420968785,1776825046502,-500.0,9.249e-05,2]
[420968786,1776825046511,-500.0,9.249e-05,2]
[420968787,1776825046520,-500.0,9.249e-05,2]
[420968789,1776825046529,-500.0,9.249e-05,2]
[420968790,1776825046538,-500.0,9.249e-05,2]
[420968791,1776825046547,-500.0,9.249e-05,2]
[420968792,1776825046556,-500.0,9.249e-05,2]
[420968793,1776825046566,-500.0,9.249e-05,2]
[420968794,1776825046574,-500.0,9.249e-05,2]
[420968795,1776825046583,-500.0,9.249e-05,2]
[420968796,1776825046592,-500.0,9.249e-05,2]
[420968797,1776825046601,-500.0,9.249e-05,2]
[420968798,1776825046610,-500.0,9.249e-05,2]
[420968800,1776825046619,-8429.7937,9.25e-05,2]
[420968801,1776825046628,-4649.1176,9.25e-05,2]
[420968802,1776825046636,-338086.4364577,9.25e-05,2]
[420968803,1776825046656,-3855.8,9.25e-05,2]
[420968804,1776825046668,-1436.72428559,9.25e-05,2]
[420968805,1776825046697,-2546.592,9.25e-05,2]
[420968806,1776825046708,-948.97704382,9.25e-05,2]
[420968807,1776825046719,-287.0989085,9.25e-05,2]
[420968808,1776825046730,-11643.53163922,9.25e-05,2]
[420968809,1776825046741,-93466.94816517,9.25e-05,2]
[420968810,1776825046751,-500.0,9.323e-05,2]
[420968811,1776825046761,-500.53603775,9.323e-05,2]
[420968812,1776825046772,-151.0,9.347e-05,2]
[420968813,1776825046782,-151.0,9.347e-05,2]
[420968814,1776825046792,-247.81199177,9.347e-05,2]
[420968815,1776825046802,-500.0,9.35e-05,2]
[420968816,1776825046812,-1500.0,9.426e-05,2]
[420968817,1776825046821,-29060.66199869,9.45e-05,2]
[420968818,1776825046833,-35005.60800131,9.45e-05,2]
[420968819,1776825046842,-500.0,9.523e-05,2]
[420968820,1776825046852,-10793.934215,9.53e-05,2]
[420968821,1776825046861,-13257.75,9.613e-05,2]
[420968822,1776825046872,-200.0,9.613e-05,2]
[420968823,1776825046881,-2000.0,9.7e-05,2]
[420968824,1776825046890,-1000.0,9.771e-05,2]
[420968825,1776825046899,-506.41123275,9.771e-05,2]
[420968826,1776825046909,-506.62782515,9.771e-05,2]
[420968827,1776825046918,-1000.0,9.771e-05,2]
[420968828,1776825046927,-628.26907429,9.797e-05,2]
[420968829,1776825046937,-200.0,9.85e-05,2]
[420968830,1776825046946,-278.5,9.85e-05,2]
[420968831,1776825046955,-151.0,9.863e-05,2]
[420968832,1776825046964,-250.0,9.863e-05,2]
[420968833,1776825046974,-250.0,9.863e-05,2]
[420968834,1776825046984,-260.96,9.863e-05,2]
[420968835,1776825046993,-501.09348267,9.871e-05,2]
[420968836,1776825047003,-2862.1,9.871e-05,2]
[420968837,1776825047012,-183.189029,9.871e-05,2]
[420968838,1776825047021,-183.189029,9.871e-05,2]
[420968839,1776825047031,-183.189029,9.871e-05,2]
[420968840,1776825047040,-183.189029,9.871e-05,2]
[420968841,1776825047050,-151.0,9.871e-05,2]
[420968842,1776825047059,-151.0,9.871e-05,2]
[420968843,1776825047069,-151.0,9.871e-05,2]
[420968844,1776825047459,-672.4437,9.945e-05,2]
[420968845,1776825047496,-578.20924308,9.983e-05,2]
[420968846,1776825047506,-721.12765535,9.983e-05,2]
[420968847,1776825047515,-1428.38747117,9.983e-05,2]
[420968848,1776825047524,-5733.44975346,9.983e-05,2]
[420968849,1776825047533,-190.55984257,9.983e-05,2]
[420968850,1776825047543,-500.0,9.983e-05,2]
[420968851,1776825047551,-201.49583761,9.983e-05,2]
[420968852,1776825047561,-151.0,9.983e-05,2]
[420968853,1776825047570,-206.18633496,9.983e-05,2]
[420968854,1776825047580,-174.61919141,9.983e-05,2]
[420968855,1776825047589,-221.29046907,9.983e-05,2]
[420968856,1776825047599,-2000.0,9.983e-05,2]
[420968857,1776825047608,-2000.0,9.983e-05,2]
[420968858,1776825047618,-2000.0,9.983e-05,2]
[420968859,1776825047627,-2000.0,9.983e-05,2]
[420968860,1776825047636,-2000.0,9.983e-05,2]
[420968861,1776825047645,-1230.42482767,9.983e-05,2]
[420968862,1776825047655,-209.40437684,9.983e-05,2]
[420968863,1776825047664,-334.83689269,9.983e-05,2]
[420968864,1776825047673,-279.9045709,9.983e-05,2]
[420968865,1776825047682,-1596.4453079,9.999e-05,2]
[420968866,1776825047691,-2004.07,0.0001,2]
[420968867,1776825047701,-808.26,0.0001,2]
[420968868,1776825047710,-1746.21,0.0001,2]
[420968869,1776825047720,-433.72,0.0001,2]
[420968870,1776825047729,-433.72,0.0001,2]
[420968871,1776825047738,-433.72,0.0001,2]
[420968872,1776825047747,-433.72,0.0001,2]
[420968873,1776825047756,-1151.67,0.0001,2]
[420968874,1776825047765,-201.41619908,0.0001,2]
[420968875,1776825047775,-151.0,0.0001,2]
[420968876,1776825047784,-151.0,0.0001,2]
[420968877,1776825047793,-151.0,0.0001,2]
[420968878,1776825047802,-151.0,0.0001,2]
[420968879,1776825047812,-151.0,0.0001,2]
[420968880,1776825047821,-151.0,0.0001,2]
[420968881,1776825047830,-151.0,0.0001,2]
[420968882,1776825047839,-151.0,0.0001,2]
[420968883,1776825047850,-151.0,0.0001,2]
[420968884,1776825047859,-151.0,0.0001,2]
[420968885,1776825047868,-151.0,0.0001,2]
[420968886,1776825047877,-2900.0,0.0001,3]
[420968887,1776825047886,-500.0,0.0001,2]
[420968888,1776825047895,-500.0,0.0001,2]
[420968889,1776825047905,-500.0,0.0001,2]
[420968890,1776825047915,-500.0,0.0001,2]
[420968891,1776825047924,-500.0,0.0001,2]
[420968892,1776825047933,-500.0,0.0001,2]
[420968893,1776825047943,-500.0,0.0001,2]
[420968894,1776825047952,-500.0,0.0001,2]
[420968895,1776825047962,-500.0,0.0001,2]
[420968896,1776825047971,-500.0,0.0001,2]
[420968897,1776825047980,-500.0,0.0001,2]
[420968898,1776825047989,-500.0,0.0001,2]
[420968899,1776825047999,-500.0,0.0001,2]
[420968900,1776825048008,-500.0,0.0001,2]
[420968901,1776825048018,-500.0,0.0001,2]
[420968902,1776825048027,-500.0,0.0001,2]
[420968903,1776825048036,-500.0,0.0001,2]
[420968904,1776825048047,-500.0,0.0001,2]
[420968905,1776825048056,-500.0,0.0001,2]
[420968906,1776825048066,-500.0,0.0001,2]
[420968907,1776825048075,-500.0,0.0001,2]
[420968908,1776825048084,-500.0,0.0001,2]
[420968909,1776825048094,-500.0,0.0001,2]
[420968910,1776825048103,-500.0,0.0001,2]
[420968911,1776825048111,-500.0,0.0001,2]
[420968912,1776825048121,-500.0,0.0001,2]
[420968913,1776825048130,-500.0,0.0001,2]
[420968914,1776825048139,-500.0,0.0001,2]
[420968915,1776825048149,-500.0,0.0001,2]
[420968916,1776825048158,-500.0,0.0001,2]
[420968917,1776825048167,-500.0,0.0001,2]
[420968918,1776825048177,-500.0,0.0001,2]
[420968919,1776825048186,-500.0,0.0001,2]
[420968920,1776825048196,-500.0,0.0001,2]
[420968921,1776825048205,-500.0,0.0001,2]
[420968922,1776825048214,-500.0,0.0001,2]
[420968923,1776825048224,-500.0,0.0001,2]
[420968924,1776825048233,-500.0,0.0001,2]
[420968925,1776825048242,-500.0,0.0001,2]
[420968926,1776825048252,-500.0,0.0001,2]
[420968927,1776825048261,-500.0,0.0001,2]
[420968928,1776825048270,-500.0,0.0001,2]
[420968929,1776825048280,-500.0,0.0001,2]
[420968930,1776825048288,-500.0,0.0001,2]
[420968931,1776825048299,-500.0,0.0001,2]
[420968932,1776825048308,-500.0,0.0001,2]
[420968933,1776825048317,-500.0,0.0001,2]
[420968934,1776825048327,-500.0,0.0001,2]
[420968935,1776825048336,-500.0,0.0001,2]
[420968936,1776825048345,-500.0,0.0001,2]
[420968937,1776825048354,-500.0,0.0001,2]
[420968938,1776825048363,-500.0,0.0001,2]
[420968939,1776825048372,-500.0,0.0001,2]
[420968940,1776825048381,-500.0,0.0001,2]
[420968941,1776825048391,-500.0,0.0001,2]
[420968942,1776825048400,-500.0,0.0001,2]
[420968943,1776825048409,-500.0,0.0001,2]
[420968944,1776825048418,-500.0,0.0001,2]
[420968945,1776825048428,-500.0,0.0001,2]
[420968946,1776825048437,-500.0,0.0001,2]
[420968947,1776825048447,-500.0,0.0001,2]
[420968948,1776825048456,-500.0,0.0001,2]
[420968949,1776825048466,-500.0,0.0001,2]
[420968950,1776825048475,-500.0,0.0001,2]
[420968951,1776825048484,-500.0,0.0001,2]
[420968952,1776825048494,-500.0,0.0001,2]
[420968953,1776825048503,-500.0,0.0001,2]
[420968954,1776825048512,-500.0,0.0001,2]
[420968955,1776825048521,-500.0,0.0001,2]
[420968956,1776825048531,-500.0,0.0001,2]
[420968957,1776825048541,-500.0,0.0001,2]
[420968958,1776825048550,-164.21,0.00010004,2]
[420968959,1776825048559,-160.0,0.00010014,2]
[420968960,1776825048568,-151.0,0.0001002,2]
[420968961,1776825048578,-500.0,0.00010038,2]
[420968962,1776825048587,-151.0,0.00010038,2]
[420968963,1776825048596,-477.93,0.00010056,2]
[420968964,1776825048606,-150.0,0.0001006,2]
[420968965,1776825048615,-150.0,0.0001006,2]
[420968966,1776825048624,-150.0,0.0001006,2]
[420968967,1776825048634,-150.0,0.0001006,2]
[420968968,1776825048643,-150.0,0.0001006,2]
[420968969,1776825048652,-150.32051303,0.0001006,2]
[420968970,1776825048662,-150.0,0.0001006,2]
[420968971,1776825048671,-150.0,0.0001006,2]
[420968972,1776825048680,-250.0,0.00010063,2]
[420968973,1776825048690,-250.0,0.00010063,2]
[420968974,1776825048699,-1680.0,0.00010063,2]
[420968975,1776825048708,-255.0,0.00010063,2]
[420968976,1776825048718,-500.0,0.00010093,2]
[420968977,1776825048727,-151.0,0.00010093,2]
[420968978,1776825048736,-150.0,0.00010109,2]
[420968979,1776825048746,-151.0,0.00010117,5]
[420968980,1776825048755,-500.0,0.00010148,2]
[420968981,1776825048765,-151.0,0.00010148,2]
[420968982,1776825048774,-155.87277336,0.00010157,2]
[420968983,1776825048784,-150.0,0.00010157,2]
[420968984,1776825048794,-500.0,0.00010203,2]
[420968985,1776825048803,-157.56188621,0.00010203,2]
[420968986,1776825048813,-150.0,0.00010206,2]
[420968987,1776825048822,-150.0,0.00010247,2]
[420968988,1776825048832,-150.0,0.00010255,2]
[420968989,1776825048842,-512.64608984,0.00010258,2]
[420968990,1776825048851,-1151.67,0.00010274,2]
[420968991,1776825048862,-21178.84,0.00010286,2]
[420968992,1776825048871,-200.112559,0.00010286,2]
[420968993,1776825048880,-200.112559,0.00010286,2]
[420968994,1776825048890,-200.112559,0.00010286,2]
[420968995,1776825048899,-200.112559,0.00010286,2]
[420968996,1776825048909,-183.189029,0.00010286,2]
[420968997,1776825048918,-183.189029,0.00010286,2]
[420968998,1776825048928,-183.189029,0.00010286,2]
[420968999,1776825048937,-183.189029,0.00010286,2]
[420969000,1776825048947,-151.0,0.00010286,2]
[420969001,1776825048956,-151.0,0.00010286,2]
[420969002,1776825048965,-151.0,0.00010286,2]
[420969003,1776825048974,-151.0,0.00010286,2]
[420969004,1776825048984,-150.0,0.00010303,2]
[420969005,1776825048994,-1500.0,0.00010318,2]
[420969006,1776825049003,-592.10002711,0.00010318,2]
[420969007,1776825049013,-880.0,0.00010337,2]
[420969008,1776825049022,-150.0,0.0001034,2]
[420969009,1776825049031,-150.0,0.0001034,2]
[420969010,1776825049043,-150.0,0.0001034,2]
[420969011,1776825049052,-150.0,0.00010352,2]
[420969012,1776825049062,-454.52894608,0.00010392,2]
[420969013,1776825049072,-150.0,0.000104,2]
[420969014,1776825049081,-880.0,0.00010406,2]
[420969015,1776825049090,-150.0,0.00010433,2]
[420969016,1776825049099,-150.0,0.00010449,2]
[420969017,1776825049108,-1051.71,0.00010466,2]
[420969018,1776825049118,-160.0,0.00010486,2]
[420969019,1776825049127,-805.626412,0.00010486,2]
[420969020,1776825049137,-1451.252825,0.00010486,2]
[420969021,1776825049146,-258.941337,0.00010486,2]
[420969022,1776825049156,-160.0,0.00010486,2]
[420969023,1776825049165,-393.445951,0.00010486,2]
[420969024,1776825049174,-626.891903,0.00010486,2]
[420969025,1776825049185,-2000.0,0.0001049,2]
[420969026,1776825049195,-150.0,0.00010498,2]
[420969027,1776825049204,-519.1528198,0.00010499,2]
[420969028,1776825049214,-151.55454157,0.00010499,2]
[420969029,1776825049224,-151.0,0.00010499,2]
[420969030,1776825049234,-151.0,0.00010499,2]
[420969031,1776825049244,-1481.23780761,0.00010531,2]
[420969032,1776825049253,-181.08010149,0.00010531,2]
[420969033,1776825049262,-217.15233878,0.00010531,2]
[420969034,1776825049271,-290.26104003,0.00010531,2]
[420969035,1776825049280,-150.0,0.00010546,2]
[420969036,1776825049289,-1151.67,0.00010548,2]
[420969037,1776825049300,-930.688,0.0001057,2]
[420969038,1776825049309,-1356.596,0.0001057,2]
[420969039,1776825049318,-624.736,0.0001057,2]
[420969040,1776825049328,-1268.374,0.0001057,2]
[420969041,1776825049337,-6031.0,0.0001057,2]
[420969042,1776825049346,-2474.0,0.0001057,2]
[420969043,1776825049355,-3780.0,0.0001057,2]
[420969044,1776825049364,-880.0,0.00010576,2]
[420969045,1776825049375,-150.0,0.00010595,2]
[420969046,1776825049384,-1000.0,0.00010599,2]
[420969047,1776825049393,-842.46433876,0.00010599,2]
[420969048,1776825049402,-1469.89744276,0.000106,2]
[420969049,1776825049412,-5000.0,0.000106,2]
[420969050,1776825049422,-2000.0,0.000106,2]
[420969051,1776825049431,-2000.0,0.000106,2]
[420969052,1776825049440,-2000.0,0.000106,2]
[420969053,1776825049450,-2000.0,0.000106,2]
[420969054,1776825049459,-2000.0,0.000106,2]
[420969055,1776825049469,-150.0,0.00010619,2]
[420969056,1776825049478,-150.0,0.00010619,2]
[420969057,1776825049487,-150.0,0.00010619,2]
[420969058,1776825049497,-150.0,0.00010619,2]
[420969059,1776825049506,-150.0,0.00010619,2]
[420969060,1776825049515,-150.0,0.00010619,2]
[420969061,1776825049525,-150.0,0.00010643,2]
[420969062,1776825049534,-160.0,0.00010682,2]
[420969063,1776825049545,-233.144831,0.00010682,2]
[420969064,1776825049555,-306.289663,0.00010682,2]
[420969065,1776825049564,-150.0,0.00010692,2]
[420969066,1776825049573,-286018.48654939,0.000107,2]
[420969067,1776825049582,-151.0,0.000107,2]
[420969068,1776825049591,-200.112559,0.000107,2]
[420969069,1776825049601,-200.112559,0.000107,2]
[420969070,1776825049610,-200.112559,0.000107,2]
[420969071,1776825049620,-200.112559,0.000107,2]
[420969072,1776825049629,-183.189029,0.000107,2]
[420969073,1776825049638,-183.189029,0.000107,2]
[420969074,1776825049647,-183.189029,0.000107,2]
[420969075,1776825049656,-183.189029,0.000107,2]
[420969076,1776825049665,-151.0,0.000107,2]
[420969077,1776825049674,-151.0,0.000107,2]
[420969078,1776825049684,-151.0,0.000107,2]
[420969079,1776825049693,-151.0,0.000107,2]
[420969080,1776825049702,-459.29,0.0001072,2]
[420969081,1776825049712,-160.0,0.0001074,2]
[420969082,1776825049721,-1770.671058,0.0001074,2]
[420969083,1776825049730,-3381.342117,0.0001074,2]
[420969084,1776825049740,-160.0,0.0001074,2]
[420969085,1776825049749,-1940.994146,0.0001074,2]
[420969086,1776825049758,-160.0,0.0001074,2]
[420969087,1776825049768,-3721.988293,0.0001074,2]
[420969088,1776825049777,-761.859651,0.0001074,2]
[420969089,1776825049787,-1363.719302,0.0001074,2]
[420969090,1776825049797,-150.0,0.00010741,2]
[420969091,1776825049806,-164.21,0.00010774,2]
[420969092,1776825049816,-175.23,0.00010783,2]
[420969093,1776825049825,-150.0,0.00010789,2]
[420969094,1776825049835,-5800.0,0.000108,3]
[420969095,1776825049844,-150.0,0.00010805,2]
[420969096,1776825049858,-2000.0,0.00010809,2]
[420969097,1776825049868,-1151.67,0.00010822,2]
[420969098,1776825049877,-150.0,0.00010838,2]
[420969099,1776825049889,-1005.54274539,0.00010866,2]
[420969100,1776825049898,-1600.0,0.00010869,2]
[420969101,1776825049907,-332.33,0.00010877,2]
[420969102,1776825049917,-150.0,0.00010886,2]
[420969103,1776825049927,-150.0,0.00010899,2]
[420969104,1776825049936,-150.0,0.00010899,2]
[420969105,1776825049946,-150.0,0.00010899,2]
[420969106,1776825049955,-8800.0,0.000109,3]
[420969107,1776825049964,-150.0,0.00010935,2]
[420969108,1776825049974,-500.0,0.00010958,2]
[420969109,1776825049983,-2000.0,0.00010959,2]
[420969110,1776825049992,-200.0,0.00010959,2]
[420969111,1776825050002,-500.0,0.00010959,2]
[420969112,1776825050011,-150.0,0.00010959,2]
[420969113,1776825050021,-3240.0,0.00010959,2]
[420969114,1776825050031,-151.0,0.00010959,2]
[420969115,1776825050040,-151.0,0.00010959,2]
[420969116,1776825050051,-150.0,0.00010959,2]
[420969117,1776825050060,-151.0,0.00010959,2]
[420969118,1776825050070,-152.073498,0.00010959,2]
[420969119,1776825050079,-4217.0,0.00010959,2]
[420969120,1776825050088,-219.561821,0.00010959,2]
[420969121,1776825050098,-219.561821,0.00010959,2]
[420969122,1776825050107,-219.561821,0.00010959,2]
[420969123,1776825050116,-219.561821,0.00010959,2]
[420969124,1776825050126,-219.561821,0.00010959,2]
[420969125,1776825050135,-219.561821,0.00010959,2]
[420969126,1776825050145,-219.561821,0.00010959,2]
[420969127,1776825050154,-219.561821,0.00010959,2]
[420969128,1776825050164,-219.561821,0.00010959,2]
[420969129,1776825050174,-219.561821,0.00010959,2]
[420969130,1776825050183,-219.561821,0.00010959,2]
[420969131,1776825050192,-219.561821,0.00010959,2]
[420969132,1776825050202,-216.79138395,0.00010959,2]
[420969133,1776825050211,-150.0,0.00010984,2]
[420969134,1776825050221,-150.0,0.00010992,2]
[420969135,1776825050230,-6017.85427437,0.00011,2]
[420969136,1776825050239,-274.0,0.00011,5]
[420969137,1776825050249,-1098.581471,0.0001101,2]
[420969138,1776825050258,-176.550912,0.0001101,2]
[420969139,1776825050267,-804.77581,0.0001101,2]
[420969140,1776825050277,-150.0,0.00011032,2]
[420969141,1776825050286,-250.99,0.00011044,2]
[420969142,1776825050297,-160.85,0.00011049,2]
[420969143,1776825050306,-300.0,0.00011058,2]
[420969144,1776825050317,-151.0,0.00011059,2]
[420969145,1776825050327,-151.0,0.00011059,2]
[420969146,1776825050336,-183.189029,0.00011059,2]
[420969147,1776825050346,-183.189029,0.00011059,2]
[420969148,1776825050355,-183.189029,0.00011059,2]
[420969149,1776825050364,-183.189029,0.00011059,2]
[420969150,1776825050373,-151.0,0.00011059,2]
[420969151,1776825050383,-151.0,0.00011059,2]
[420969152,1776825050392,-276.867159,0.00011059,2]
[420969153,1776825050401,-151.0,0.00011059,2]
[420969154,1776825050411,-219.561821,0.00011059,2]
[420969155,1776825050420,-219.561821,0.00011059,2]
[420969156,1776825050430,-219.561821,0.00011059,2]
[420969157,1776825050439,-219.561821,0.00011059,2]
[420969158,1776825050449,-37744.89,0.00011059,2]
[420969159,1776825050458,-498.0,0.00011069,2]
[420969160,1776825050468,-433.0,0.00011069,2]
[420969161,1776825050477,-1536.04360649,0.00011079,2]
[420969162,1776825050487,-328.35001549,0.00011079,2]
[420969163,1776825050496,-225.18697532,0.00011079,2]
[420969164,1776825050506,-283.20957716,0.00011079,2]
[420969165,1776825050515,-150.0,0.00011081,2]
[420969166,1776825050525,-1151.67,0.00011096,2]
[420969167,1776825050534,-300.0,0.00011098,2]
[420969168,1776825050544,-300.0,0.00011098,2]
[420969169,1776825050552,-300.0,0.00011098,2]
[420969170,1776825050562,-17898.22352712,0.00011099,2]
[420969171,1776825050572,-17898.22352708,0.00011099,2]
[420969172,1776825050581,-17898.22352708,0.00011099,2]
[420969173,1776825050590,-8464.16054275,0.00011099,2]
[420969174,1776825050599,-8464.1605427,0.00011099,2]
[420969175,1776825050609,-8464.1605427,0.00011099,2]
[420969176,1776825050619,-8464.1605427,0.00011099,2]
[420969177,1776825050628,-8464.1605427,0.00011099,2]
[420969178,1776825050637,-8464.1605427,0.00011099,2]
[420969179,1776825050647,-8464.1605427,0.00011099,2]
[420969180,1776825050656,-152.528337,0.00011099,2]
[420969181,1776825050665,-151.0,0.00011099,2]
[420969182,1776825050675,-200.112559,0.00011099,2]
[420969183,1776825050684,-200.112559,0.00011099,2]
[420969184,1776825050694,-200.112559,0.00011099,2]
[420969185,1776825050703,-200.112559,0.00011099,2]
[420969186,1776825050712,-200.112559,0.00011099,2]
[420969187,1776825050721,-200.112559,0.00011099,2]
[420969188,1776825050731,-200.112559,0.00011099,2]
[420969189,1776825050740,-200.112559,0.00011099,2]
[420969190,1776825050749,-183.189029,0.00011099,2]
[420969191,1776825050758,-183.189029,0.00011099,2]
[420969192,1776825050767,-183.189029,0.00011099,2]
[420969193,1776825050776,-183.189037,0.00011099,2]
[420969194,1776825050786,-151.0,0.00011099,2]
[420969195,1776825050797,-151.0,0.00011099,2]
[420969196,1776825050807,-151.717668,0.00011099,2]
[420969197,1776825050817,-219.561821,0.00011099,2]
[420969198,1776825050826,-219.561821,0.00011099,2]
[420969199,1776825050836,-219.561821,0.00011099,2]
[420969200,1776825050845,-219.561828,0.00011099,2]
[420969201,1776825050855,-150.0,0.00011129,2]
[420969202,1776825050864,-175.749052,0.00011178,2]
[420969203,1776825050874,-200.112559,0.00011178,2]
[420969204,1776825050883,-200.112559,0.00011178,2]
[420969205,1776825050892,-200.112559,0.00011178,2]
[420969206,1776825050902,-200.112565,0.00011178,2]
[420969207,1776825050913,-189.38516779,0.00011178,2]
[420969208,1776825050923,-156.70793094,0.00011178,2]
[420969209,1776825050932,-195.13225105,0.00011178,2]
[420969210,1776825050942,-158.65291331,0.00011178,2]
[420969211,1776825050952,-156.08110581,0.00011178,2]
[420969212,1776825050961,-156.4221754,0.00011178,2]
[420969213,1776825050971,-157.38550778,0.00011178,2]
[420969214,1776825050980,-476.887156,0.00011216,2]
[420969215,1776825050989,-390.34680494,0.00011222,2]
[420969216,1776825050999,-187.9,0.00011233,2]
[420969217,1776825051008,-180.5,0.0001124,2]
[420969218,1776825051018,-1463.95844992,0.0001127,2]
[420969219,1776825051028,-2414.551443,0.00011277,2]
[420969220,1776825051036,-2646.8102,0.00011277,2]
[420969221,1776825051047,-1038.899524,0.00011277,2]
[420969222,1776825051056,-303.92103139,0.0001128,2]
[420969223,1776825051066,-432.3,0.00011281,2]
[420969224,1776825051075,-4999.99,0.00011281,2]
[420969225,1776825051084,-358.95,0.00011281,2]
[420969226,1776825051094,-24999.99,0.00011281,2]
[420969227,1776825051103,-9999.99,0.00011281,2]
[420969228,1776825051112,-299.99,0.00011281,2]
[420969229,1776825051122,-9999.99,0.00011281,2]
[420969230,1776825051131,-150.99,0.00011281,2]
[420969231,1776825051141,-999.99,0.00011281,2]
[420969232,1776825051150,-1193.05,0.00011281,2]
[420969233,1776825051159,-9999.99,0.00011281,2]
[420969234,1776825051168,-2909.01,0.00011281,2]
[420969235,1776825051178,-23460.32,0.00011281,2]
[420969236,1776825051187,-9999.99,0.00011281,2]
[420969237,1776825051197,-1081.26,0.00011281,2]
[420969238,1776825051206,-8464.1605427,0.00011289,2]
[420969239,1776825051215,-25000.0,0.00011296,2]
[420969240,1776825051224,-25000.0,0.00011305,2]
[420969241,1776825051234,-5899.79706716,0.00011314,2]
[420969242,1776825051265,-459.58068045,0.00011314,2]
[420969243,1776825084309,150.0,0.00013204,30]
[420969244,1776825084630,150.0,0.0001401,30]
[420969245,1776825084986,187.14,0.00014816,30]
[420969246,1776825085335,249.52,0.00015622,30]
[420969247,1776825085703,311.9,0.00016428,30]
[420969248,1776825157417,150.0,0.00013206,30]
[420969249,1776825157771,150.0,0.00014012,30]
[420969250,1776825158144,150.0,0.00014818,30]
[420969251,1776825158483,196.14,0.00015624,30]
[420969252,1776825158817,245.18,0.0001643,30]
[420969254,1776825181958,150.0,0.000162,120]
[420969255,1776825241642,150.0,0.00013122,30]
[420969256,1776825241989,150.0,0.00013923,30]
[420969257,1776825242356,150.0,0.00014724,30]
[420969258,1776825242704,150.77,0.00015525,30]
[420969259,1776825243062,188.46,0.00016325,30]
[420969260,1776825332989,150.0,0.0001449,30]
[420969261,1776825333321,150.0,0.00015374,30]
[420969262,1776825333669,150.0,0.00016259,30]
[420969263,1776825370162,150.0,0.000162,120]
[420969266,1776825637360,150.0,0.00015901,30]
[420969267,1776825711936,150.0,0.00015836,30]
[420969268,1776825745458,150.0,0.000162,120]
[420969271,1776825790492,150.0,0.00015826,30]
[420969272,1776825879565,150.0,0.00015712,30]
[420969273,1776825932733,150.0,0.000162,120]
[420969274,1776825960423,150.0,0.00013093,30]
[420969275,1776825960779,150.0,0.00013892,30]
[420969276,1776825961131,150.0,0.00014692,30]
[420969277,1776825961483,150.0,0.00015491,30]
[420969278,1776825961843,150.0,0.0001629,30]
[420969281,1776826115466,150.0,0.00016227,30]
[420969282,1776826118711,237.38,0.000163,120]
[420969283,1776826184485,150.0,0.00015589,30]